{"text_format":"3","workbook":"xlsx","n_sheets":4,"sheets":["Overview & Master Plan","Pre-Work","Reaping Event","Follow-up & Summary"],"not_rendered":{"images":1},"read":"whole","date_system":"1900"}

{"sheet":"Overview & Master Plan","index":0,"n_rows":8,"n_cols":7,"rows_kept":8,"merged":[[0,2,0,5],[1,2,1,5],[5,2,5,5],[7,1,57,6]]}
[null,null,"ALBERTA CONFERENCE",{"$nulls":3},"Last Updated Jan 15, 2019"]
[null,null,"EVANGELISM BUDGET REQUEST FORM"]
[]
[null,"Church","Location","Evangelist Name","Pastor","Start Date","End Date"]
[]
[null,null,"please fill in the grey boxes in this document"]
[]
[null,"It is a pleasure to participate with the local church in winning people for Christ. The Conference desires to make every reasonable resource available so that people may hear and respond to the gospel and thus expand the kingdom of God.   \n\nTo be of assistance and at the same time accountable, the Conference requires the requesting church, company, or group to complete the Evangelism Budget Request form.  For budgeting and planning purposes, this form must be submitted no later than January 31.\n \nSections  \nThe form consists of three sections.  Please fill in the grey fields as indicated.\n - Pre-Work\n - Reaping Event\n - Follow-up\nAt the end of this form the Master Plan Evangelism Budget Overview automatically summarizes the budget totals from these three sections.\n\nDirections \n - Complete each section carefully.\n - Obtain local Church Board endorsement before applying to the Conference.\n - The submitted form is processed by the Ministerial/Evangelism Department.\n\nInformation\n - The church must complete each section of the Evangelism Budget Request Form, including the budget section.\n\n - A church may request funding assistance up to 65% of actual expense, up to $8,000 in rural areas and up to $16,000 for cities with a population >50,000.  Special considerations will be given to Metro area evangelism requests that require greater need and costs.\n\n - A reaping event should include a minimum of 10 meetings.\n\n - The Conference funding may be advanced to the church treasurer upon request.  The Evangelism Expense Report, along with any funds needing to be returned, should be submitted within 60 days of the close of the reaping event.\n\n - The purchase of AV/Computer equipment is a non-reimbursable expense.\n\nPlease send completed report to evangelism@albertaadventist.ca"]

{"sheet":"Pre-Work","index":1,"n_rows":52,"n_cols":5,"rows_kept":52,"merged":[[0,0,0,7],[1,0,1,7],[2,0,2,7],[3,1,12,6],[14,3,25,6],[27,3,38,6]]}
["ALBERTA CONFERENCE"]
["Pre-Work"]
[{"$f":"IF(ISBLANK('Overview & Master Plan'!B5),\"\",'Overview & Master Plan'!B5)","v":""}]
[null,"Jesus’ work was well planned. “After these things the Lord appointed seventy others also, and sent them two by two before His face into every city and place where He Himself was about to go.\" (Luke 10:1NKJV)\n\nEllen White reinforces the importance of pre-work. She says , “Christ’s method alone will give true success in reaching the people. The Savior mingled with men as one who desired their good. He showed His sympathy for them, ministered to their needs, and won their confidence. Then He bade them, ‘Follow Me’.” (CS 119:3)\n\nDescribe in as much detail as possible, including timelines, the pre-work plans of the church in preparing for this event. Show how each aspect of these plans will enhance the outcome of the reaping series.\n\n"]
{"$rows_empty":9}
[{"$nulls":3},"To insert new line use: ALT+Enter (Windows); Option+Enter (Mac)"]
[null,null,"Timelines"]
{"$rows_empty":12}
[null,null,"Pre-Work Plans"]
{"$rows_empty":12}
[null,null,"Pre-evangelism Budget"]
[null,null,"Rental/Church"]
[null,null,"Community Programs"]
[null,null,"Supplies/Tracts & Magazines"]
[null,null,"Other Pre-Evangelism"]
[]
[]
[]
[{"$nulls":3},"Pre-Budget Total",{"$f":"SUM(D42:D45)","v":0}]
[{"$nulls":3},"Local Church (35%)",{"$f":"E49*0.35","v":0}]
[{"$nulls":3},"Conference Assistance (65%)",{"$f":"E49*0.65","v":0}]
[{"$nulls":4},"Maximum 20% of Total"]

{"sheet":"Reaping Event","index":2,"n_rows":59,"n_cols":7,"rows_kept":59,"merged":[[0,0,0,7],[1,0,1,7],[2,0,2,7],[3,1,9,6],[12,1,19,3],[22,1,32,3],[29,6,30,6],[35,1,45,3],[48,1,58,3],[59,4,59,7]]}
["ALBERTA CONFERENCE"]
["Reaping Event"]
[{"$f":"IF(ISBLANK('Overview & Master Plan'!B5),\"\",'Overview & Master Plan'!B5)","v":""}]
[null,"Jesus' commission is, \"Go…and make disciples of all nations, baptizing them in the name of the Father and the Son and the Holy Spirit, teaching them to observe all things that I have commanded you.\" (Matthew 28:19-20 NKJV)\n\nCommenting on this instruction, Ellen White says, \"To us also the commission is given. We are bidden to go forth as Christ's messengers, to teach, instruct, and persuade men and women, to urge upon their attention the word of life. And to us all the assurance of Christ's abiding presence is given. Whatever the difficulties with which we may have to contend, whatever the trials we may have to endure, the gracious promise is always ours, 'Lo, I am with you always, even to the end of the world'.\" (Ev. 15:2)\n"]
{"$rows_empty":7}
[null,"Describe the type of series",{"$nulls":4},"Revenue"]
[{"$nulls":4},"Church"]
[{"$nulls":4},"Offerings"]
[{"$nulls":4},"Sales"]
[{"$nulls":4},"Other Revenues"]
[{"$nulls":4},"Conference Portion "]
[{"$nulls":5},"Total Revenue from all sources",{"$f":"SUM(F13:F17)","v":0}]
[]
[{"$nulls":6},"Expenses"]
[null,"To insert new line use: ALT+Enter (Windows); Option+Enter (Mac)",null,null,"Evangelist(s)",null,"Honorariums"]
[null,"How will the church members be involved",null,null,"Musician(s)"]
[{"$nulls":4},"Volunteer(s)"]
[]
[{"$nulls":4},"Flights",null,"Travel costs"]
[{"$nulls":4},"Car Rental"]
[{"$nulls":4},"Accommodations"]
[{"$nulls":4},"Per Diem or Meals"]
[]
[{"$nulls":4},"Hall Rental",null,"Facility & Equipment Rental"]
[{"$nulls":4},"A/V Rental"]
[{"$nulls":4},"Decorating"]
[{"$nulls":4},"Guest Services",null,"Parking, Refreshments"]
[{"$nulls":4},"Other meeting hall costs",null,"Chairs, Tables, Piano Rentals"]
[null,"What are the anticipated results of the series"]
[{"$nulls":4},"Children's Program",null,"Programming"]
[]
[{"$nulls":4},"Bibles & Books",null,"Materials & Office"]
[{"$nulls":4},"Gifts & Giveaways",null,"Supplies"]
[{"$nulls":4},"Sermon Outlines"]
[{"$nulls":4},"Offering Envelopes"]
[{"$nulls":4},"CDs/DVDs"]
[{"$nulls":4},"Office Supplies",null,"Pencils, Stationery"]
[]
[{"$nulls":4},"Mailing/Shipping",null,"Advertising"]
[{"$nulls":4},"Handbills (Printing)"]
[{"$nulls":4},"Website"]
[null,"Additional Information",null,null,"Internet Ads"]
[{"$nulls":4},"Newspaper ads"]
[{"$nulls":4},"Radio ads"]
[{"$nulls":4},"TV ads"]
[{"$nulls":4},"Billboards"]
[]
[{"$nulls":4},"Miscellaneous",null,"Other"]
[{"$nulls":4},"Contingency"]
[]
[{"$nulls":5},"Total Expenses",{"$f":"SUM(F21:F55)","v":0}]
[{"$nulls":5},"Church Portion (35%)",{"$f":"G57*0.35","v":0}]
[{"$nulls":5},"Conference Portion (65%)",{"$f":"G57*0.65","v":0}]

{"sheet":"Follow-up & Summary","index":3,"n_rows":58,"n_cols":25,"rows_kept":58,"merged":[[0,0,0,7],[1,0,1,7],[2,0,2,7],[3,1,12,6],[14,1,19,6],[21,1,26,6],[28,1,33,6],[40,1,40,6],[41,1,42,6],[49,3,49,5],[53,3,54,3],[53,4,54,4],[53,5,54,5],[55,2,55,5],[56,2,56,5],[57,4,58,4],[57,5,58,5]]}
["ALBERTA CONFERENCE",{"$nulls":21},"Approved","Pending Review","Not Approved"]
["Follow-up"]
[{"$f":"IF(ISBLANK('Overview & Master Plan'!B5),\"\",'Overview & Master Plan'!B5)","v":""}]
[null,"The apostle Paul developed a well-designed strategy of follow-up to his evangelistic efforts. In addition to his own visits and communications with the churches he established, he appointed men like Timothy and Titus to strengthen the new members.\n\nPlease read carefully Evangelism chapter 10, pages 334-367 “Establishing and Holding New Converts.”\n\nThe requirement to carefully develop follow-up strategies is not optional.\n\nBased on the reference in Evangelism Chapter 10, describe in as much detail as possible, including anticipated timelines, the plans of the church to continue follow up with newly baptized members. For example: What plans does the church have to integrate the new members into the church family social structure, to appropriately nurture them spiritually, and to disciple them in ministry according to their spiritual gifts?​"]
{"$rows_empty":9}
[null,"To insert new line use: ALT+Enter (Windows); Option+Enter (Mac)"]
[1]
[]
[]
[]
[]
[]
[]
[2]
[]
[]
[]
[]
[]
[]
[3]
[]
[]
[]
[]
[]
[]
[null,"Follow-up Budget",{"$nulls":3},"Total Follow-up",{"$f":"SUM(C37:C38)","v":0}]
[null,"Follow Up Studies",{"$nulls":4},"Maximum 10% of Total"]
[null,"Other"]
[]
[]
[null,"Master Plan Evangelism Budget Summary"]
[null,"Speaking of Evangelism finances and budgets, Ellen White says, “God’s people are not to go forward blindly in the investment of means that they have not and know not where to obtain. We must show wisdom in the movements we make.” (Evangelism 85:1)\n"]
[]
[]
[{"$nulls":3},"Estimated Cost","Local Church Cost","Conference Assistance"]
[null,null,"Pre-evangelism",{"$f":"'Pre-Work'!$E$49","v":0},{"$f":"D46","v":0}]
[null,null,"Reaping",{"$f":"'Reaping Event'!$G$57","v":0},{"$f":"'Reaping Event'!$G$58","v":0},{"$f":"'Reaping Event'!$G$59","v":0}]
[null,null,"Follow-up",{"$f":"'Follow-up & Summary'!$G$36","v":0},{"$f":"D48","v":0}]
[null,null,"Total",{"$f":"SUM(D46:D48)","v":0},{"$f":"SUM(E46:E48)","v":0},0]
[{"$nulls":3},"Conference portion is 65% up to $16,000 for Cities; up to $8,000 for Rural areas"]
[]
[null,null,"Church Request",0,"Pastor's Signature"]
[]
[null,null,"Church Board Action ##",null,"Church Treasurer's Signature"]
[]
[null,null,"***Note: Entering Church Treasurer's Name implies the Church Treasurer has approved the Evangelism Budget"]
[]
[null,null,"Conference Approved",0,"Evangelism Committee Action","Pending Review"]